fUST/lending_fUST_20241202
["ID","MTS","AMOUNT","RATE_DAILY","PERIOD"]
[343950197,1733128242833,-7923.07486896,0.00025,2]
[343950199,1733128242846,-151.0,0.00025,7]
[343950200,1733128242856,-151.0,0.00025,7]
[343950201,1733128242865,-209.750057,0.00025,7]
[343950202,1733128242874,-184.0,0.00025,2]
[343950204,1733128242884,-153.0,0.00025,2]
[343950206,1733128242893,-27488.83446374,0.00025,2]
[343950208,1733128242905,-3581.37338474,0.00025,2]
[343950210,1733128242941,-7288.26678507,0.00025,2]
[343950213,1733128242953,-20690.32694408,0.00025,2]
[343950239,1733128245743,-332.87666618,0.00025,2]
[343950241,1733128245755,-40588.16077963,0.00025,2]
[343950243,1733128245766,-15674.61462608,0.00025,7]
[343950245,1733128245775,-486.46950259,0.00025,2]
[343950246,1733128245785,-3870.41349039,0.00025,2]
[343950248,1733128245795,-12344.43778187,0.0002509,2]
[343950250,1733128245822,-2356.79279,0.0002509,2]
[343950251,1733128245833,-13718.62617057,0.0002509,2]
[343950252,1733128245848,-18596.82472315,0.0002509,2]
[343950253,1733128245861,-151.0,0.0002509,7]
[343950254,1733128245870,-151.0,0.0002509,7]
[343950255,1733128245879,-151.0,0.0002509,7]
[343950256,1733128245889,-151.0,0.0002509,7]
[343950257,1733128245899,-160.59519495,0.00025219,2]
[343950258,1733128245908,-857.45700441,0.00025475,2]
[343950259,1733128245918,-213.0944069,0.00025507,2]
[343950261,1733128245928,-153.0,0.00025507,2]
[343950262,1733128245938,-213.0944069,0.00025507,2]
[343950263,1733128245948,-153.0,0.00025507,2]
[343950264,1733128245957,-213.0944069,0.00025507,2]
[343950265,1733128245967,-153.0,0.00025507,2]
[343950266,1733128245977,-211.8747653,0.00025507,2]
[343950267,1733128245986,-153.0,0.00025507,2]
[343950268,1733128245996,-153.0,0.00025507,2]
[343950269,1733128246005,-356.0518868,0.00025507,2]
[343950270,1733128246014,-568.77471679,0.00025521,2]
[343950271,1733128246024,-1000.0,0.00025521,2]
[343950272,1733128246033,-1000.0,0.00025521,2]
[343950273,1733128246043,-176.43297184,0.00025534,2]
[343950274,1733128246052,-3780.30551606,0.0002566,2]
[343950406,1733129434601,-2776.36141266,0.00023,2]
[343950410,1733129434613,-2210.3375,0.00023,2]
[343950411,1733129434727,-815.01004,0.00023,2]
[343950412,1733129434739,-1819.43449759,0.00023,2]
[343950413,1733129434749,-2049.6133882,0.00024449,2]
[343950415,1733129434759,-275.5287556,0.00024621,2]
[343950417,1733129434769,-151.0,0.00025,7]
[343950419,1733129434779,-636.52730867,0.00025248,2]
[343950421,1733129434793,-625.85257368,0.00025349,3]
[343950423,1733129434803,-300.0,0.00025558,2]
[343950425,1733129434814,-300.0,0.00025558,2]
[343950427,1733129434824,-916.8574221,0.0002556,2]
[343950429,1733129434834,-150.01,0.00025659,2]
[343950431,1733129434845,-2393.45929478,0.00025659,2]
[343950433,1733129434857,-169.203,0.00025659,10]
[343950435,1733129434868,-64457.01848657,0.0002566,2]
[343950437,1733129434879,-151.0,0.0002566,7]
[343950439,1733129434890,-151.0,0.0002566,7]
[343950441,1733129434900,-214.0,0.0002598,17]
[343950443,1733129434911,-469.69501462,0.00026,7]
[343950444,1733129434925,-916.85742209,0.00026244,2]
[343950445,1733129434935,-729.322,0.00026363,15]
[343950446,1733129434944,-155.27975975,0.0002648,2]
[343950447,1733129434954,-300.0,0.000265,2]
[343950448,1733129434966,-224.96901,0.000266,2]
[343950449,1733129434977,-292.7515531,0.00026603,2]
[343950450,1733129434988,-916.85742209,0.00026927,2]
[343950451,1733129434998,-151.0,0.000271,18]
[343950452,1733129435008,-514.47420267,0.0002721,2]
[343950453,1733129435017,-500.0,0.00027287,2]
[343950454,1733129435026,-500.0,0.00027287,2]
[343950455,1733129435036,-208.14768825,0.00027287,2]
[343950456,1733129435048,-173.44462252,0.00027287,2]
[343950457,1733129435057,-500.0,0.00027287,2]
[343950458,1733129435067,-426.70372041,0.00027287,2]
[343950459,1733129435077,-2610.37,0.0002729,10]
[343950460,1733129435087,-6666.0,0.00027297,2]
[343950461,1733129435096,-585.74685202,0.00027297,2]
[343950462,1733129435106,-3000.0,0.000273,2]
[343950463,1733129435115,-150.0,0.000273,2]
[343950464,1733129435124,-514.47420264,0.000273,2]
[343950465,1733129435133,-3000.0,0.0002731,2]
[343950466,1733129435142,-3000.0,0.0002732,2]
[343950467,1733129435152,-5121.432989,0.0002733,2]
[343950468,1733129435161,-151.0,0.0002733,7]
[343950469,1733129435171,-501.68846624,0.00027373,2]
[343950470,1733129435181,-500.0,0.00027373,2]
[343950471,1733129435190,-500.0,0.00027373,2]
[343950472,1733129435200,-591.89519846,0.00027373,2]
[343950473,1733129435210,-500.0,0.00027373,2]
[343950474,1733129435219,-514.47420264,0.00027391,2]
[343950475,1733129435229,-386.75800555,0.00027396,2]
[343950476,1733129435238,-594.3139065,0.00027397,7]
[343950477,1733129435247,-504.30926154,0.00027397,7]
[343950479,1733129435257,-506.22752739,0.00027397,7]
[343950480,1733129435266,-501.30456561,0.00027397,7]
[343950481,1733129435276,-151.0,0.00027397,7]
[343950482,1733129435285,-151.0,0.00027397,7]
[343950484,1733129435298,-260.910262,0.00027397,7]
[343950485,1733129435308,-501.42018556,0.00027397,7]
[343950486,1733129435317,-502.03224502,0.00027397,7]
[343950487,1733129435327,-500.0,0.00027397,7]
[343950488,1733129435336,-500.0,0.00027397,7]
[343950489,1733129435345,-500.0,0.00027397,7]
[343950490,1733129435354,-500.0,0.00027397,7]
[343950491,1733129435363,-500.0,0.00027397,7]
[343950492,1733129435373,-500.0,0.00027397,7]
[343950493,1733129435382,-198.71125641,0.00027397,7]
[343950494,1733129435392,-229.65029554,0.00027397,7]
[343950496,1733129435402,-500.0,0.00027397,7]
[343950498,1733129435411,-502.30038833,0.00027397,7]
[343950499,1733129435422,-521.75268151,0.00027397,7]
[343950501,1733129435431,-506.57185516,0.00027397,7]
[343950502,1733129435440,-152.68861132,0.00027397,7]
[343950503,1733129435450,-589.06140118,0.00027397,7]
[343950504,1733129435459,-833.33,0.00027397,7]
[343950505,1733129435468,-151.0,0.00027397,7]
[343950506,1733129435477,-151.0,0.00027397,7]
[343950507,1733129435487,-151.0,0.00027397,7]
[343950508,1733129435496,-151.0,0.00027397,7]
[343950509,1733129435506,-502.30846257,0.00027397,7]
[343950510,1733129435515,-506.21840377,0.00027397,7]
[343950511,1733129435525,-505.16937284,0.00027397,7]
[343950512,1733129435534,-250.3599516,0.00027397,7]
[343950513,1733129435548,-502.23985659,0.00027397,7]
[343950514,1733129435557,-500.0,0.00027397,7]
[343950515,1733129435566,-180.28446623,0.00027397,7]
[343950516,1733129435576,-192.74725973,0.00027397,7]
[343950517,1733129435585,-500.0,0.00027397,7]
[343950518,1733129435595,-512.99260292,0.00027397,7]
[343950519,1733129435604,-523.52885261,0.00027397,7]
[343950520,1733129435614,-500.0,0.00027397,7]
[343950521,1733129435624,-500.0,0.00027397,2]
[343950522,1733129435633,-500.0,0.00027397,7]
[343950523,1733129435642,-500.0,0.00027397,7]
[343950525,1733129435652,-500.0,0.00027397,7]
[343950526,1733129435661,-500.0,0.00027397,7]
[343950527,1733129435670,-500.0,0.00027397,7]
[343950528,1733129435679,-500.0,0.00027397,7]
[343950529,1733129435689,-500.0,0.00027397,7]
[343950530,1733129435698,-500.0,0.00027397,7]
[343950531,1733129435707,-500.0,0.00027397,7]
[343950532,1733129435716,-313.31376736,0.00027397,7]
[343950533,1733129435726,-500.0,0.00027397,7]
[343950534,1733129435734,-486.56499657,0.00027397,7]
[343950535,1733129435745,-500.0,0.00027397,7]
[343950536,1733129435754,-500.0,0.00027397,7]
[343950537,1733129435763,-507.66973986,0.00027397,7]
[343950538,1733129435772,-500.0,0.00027397,7]
[343950539,1733129435781,-624.31905477,0.00027397,7]
[343950540,1733129435793,-515.50761226,0.00027397,7]
[343950541,1733129435802,-502.06783753,0.00027397,7]
[343950542,1733129435811,-504.5919942,0.00027397,7]
[343950543,1733129435820,-505.97152834,0.00027397,7]
[343950544,1733129435829,-501.72389391,0.00027397,7]
[343950545,1733129435838,-500.0,0.00027397,7]
[343950546,1733129435847,-151.0,0.00027397,7]
[343950547,1733129435857,-151.0,0.00027397,7]
[343950548,1733129435867,-151.0,0.00027397,7]
[343950549,1733129435876,-151.0,0.00027397,7]
[343950550,1733129435885,-382.076176,0.00027397,7]
[343950551,1733129435895,-382.076176,0.00027397,7]
[343950552,1733129435904,-382.076176,0.00027397,7]
[343950553,1733129435915,-382.076176,0.00027397,7]
[343950554,1733129435924,-382.076176,0.00027397,7]
[343950555,1733129435938,-502.876122,0.00027397,7]
[343950556,1733129435947,-382.076176,0.00027397,7]
[343950557,1733129435956,-505.51801461,0.00027397,7]
[343950558,1733129435966,-382.076176,0.00027397,7]
[343950559,1733129435976,-382.076176,0.00027397,7]
[343950560,1733129435985,-500.0,0.00027397,2]
[343950561,1733129435995,-500.0,0.00027397,7]
[343950562,1733129436005,-500.0,0.00027397,7]
[343950563,1733129436015,-500.0,0.00027397,7]
[343950564,1733129436024,-500.0,0.00027397,7]
[343950565,1733129436033,-500.0,0.00027397,7]
[343950566,1733129436047,-508.07692473,0.00027397,7]
[343950567,1733129436056,-500.0,0.00027397,7]
[343950568,1733129436065,-500.0,0.00027397,7]
[343950569,1733129436075,-500.0,0.00027397,7]
[343950570,1733129436084,-500.0,0.00027397,7]
[343950571,1733129436093,-200.0,0.00027397,7]
[343950572,1733129436104,-500.0,0.00027397,7]
[343950573,1733129436119,-500.0,0.00027397,7]
[343950574,1733129436128,-500.0,0.00027397,7]
[343950575,1733129436138,-500.0,0.00027397,7]
[343950576,1733129436147,-502.3958269,0.00027397,7]
[343950577,1733129436156,-501.88323114,0.00027397,7]
[343950578,1733129436166,-500.0,0.00027397,7]
[343950579,1733129436175,-521.54161736,0.00027397,7]
[343950580,1733129436185,-500.0,0.00027397,7]
[343950581,1733129436194,-501.82785611,0.00027397,7]
[343950582,1733129436204,-500.0,0.00027397,7]
[343950583,1733129436213,-500.0,0.00027397,7]
[343950584,1733129436223,-500.0,0.00027397,7]
[343950585,1733129436232,-504.68249135,0.00027397,7]
[343950586,1733129436242,-500.0,0.00027397,7]
[343950587,1733129436251,-500.0,0.00027397,7]
[343950588,1733129436261,-505.79681301,0.00027397,7]
[343950589,1733129436271,-500.0,0.00027397,7]
[343950590,1733129436279,-500.0,0.00027397,7]
[343950591,1733129436291,-500.0,0.00027397,7]
[343950592,1733129436300,-500.0,0.00027397,7]
[343950593,1733129436310,-500.0,0.00027397,7]
[343950594,1733129436320,-503.37511949,0.00027397,7]
[343950595,1733129436329,-500.0,0.00027397,7]
[343950596,1733129436338,-500.0,0.00027397,7]
[343950597,1733129436347,-503.80494843,0.00027397,7]
[343950598,1733129436357,-502.21094225,0.00027397,7]
[343950599,1733129436366,-500.0,0.00027397,7]
[343950600,1733129436376,-500.0,0.00027397,7]
[343950601,1733129436385,-613.83195182,0.00027397,7]
[343950602,1733129436395,-500.0,0.00027397,7]
[343950603,1733129436405,-500.74431628,0.00027397,7]
[343950604,1733129436414,-500.0,0.00027397,7]
[343950605,1733129436423,-501.99453372,0.00027397,7]
[343950606,1733129436433,-502.72431918,0.00027397,7]
[343950607,1733129436443,-500.0,0.00027397,7]
[343950608,1733129436452,-503.00337591,0.00027397,7]
[343950609,1733129436461,-500.0,0.00027397,7]
[343950610,1733129436470,-500.0,0.00027397,7]
[343950611,1733129436480,-500.0,0.00027397,7]
[343950612,1733129436490,-500.0,0.00027397,7]
[343950613,1733129436500,-552.04120962,0.00027397,7]
[343950614,1733129436509,-502.92564586,0.00027397,7]
[343950615,1733129436519,-500.42628889,0.00027397,7]
[343950616,1733129436528,-500.0,0.00027397,7]
[343950617,1733129436537,-500.0,0.00027397,7]
[343950618,1733129436553,-500.0,0.00027397,7]
[343950619,1733129436562,-509.21616796,0.00027397,7]
[343950620,1733129436571,-559.68929267,0.00027397,7]
[343950621,1733129436581,-508.08896169,0.00027397,7]
[343950622,1733129436593,-500.0,0.00027397,7]
[343950623,1733129436602,-500.0,0.00027397,7]
[343950624,1733129436612,-252.71878601,0.00027397,7]
[343950625,1733129436622,-507.40463179,0.00027397,7]
[343950626,1733129436632,-500.0,0.00027397,7]
[343950627,1733129436641,-501.01332226,0.00027397,7]
[343950628,1733129436651,-500.0,0.00027397,7]
[343950629,1733129436660,-500.0,0.00027397,7]
[343950630,1733129436670,-500.0,0.00027397,7]
[343950631,1733129436679,-500.60087247,0.00027397,7]
[343950632,1733129436688,-500.0,0.00027397,7]
[343950633,1733129436698,-501.38964259,0.00027397,7]
[343950634,1733129436708,-187.6465932,0.00027397,7]
[343950635,1733129436788,-37.92961871,0.00027397,7]
[343950674,1733129437988,-462.07038129,0.00027397,7]
[343950675,1733129437997,-500.0,0.00027397,7]
[343950676,1733129438011,-500.0,0.00027397,7]
[343950678,1733129438021,-500.0,0.00027397,7]
[343950680,1733129438030,-332.37710217,0.00027397,7]
[343950681,1733129438042,-505.77602929,0.00027397,7]
[343950683,1733129438053,-501.26772823,0.00027397,7]
[343950685,1733129438063,-500.0,0.00027397,7]
[343950687,1733129438072,-507.77684285,0.00027397,7]
[343950688,1733129438082,-501.0135146,0.00027397,7]
[343950689,1733129438091,-502.32984625,0.00027397,7]
[343950691,1733129438100,-500.0,0.00027397,7]
[343950693,1733129438109,-501.79655608,0.00027397,7]
[343950696,1733129438119,-500.0,0.00027397,7]
[343950697,1733129438128,-500.0,0.00027397,7]
[343950699,1733129438137,-500.0,0.00027397,7]
[343950701,1733129438148,-500.0,0.00027397,7]
[343950703,1733129438157,-274.59243491,0.00027397,7]
[343950706,1733129438167,-500.0,0.00027397,7]
[343950708,1733129438176,-500.0,0.00027397,7]
[343950710,1733129438185,-420.30024043,0.00027397,7]
[343950711,1733129438195,-500.0,0.00027397,7]
[343950713,1733129438204,-500.0,0.00027397,7]
[343950716,1733129438213,-500.0,0.00027397,7]
[343950717,1733129438222,-500.0,0.00027397,7]
[343950719,1733129438231,-151.0,0.00027397,7]
[343950721,1733129438241,-151.0,0.00027397,7]
[343950723,1733129438251,-500.0,0.00027397,7]
[343950725,1733129438260,-151.0,0.00027397,7]
[343950727,1733129438270,-151.0,0.00027397,7]
[343950729,1733129438279,-500.0,0.00027397,2]
[343950731,1733129438288,-505.20676037,0.00027397,7]
[343950733,1733129438303,-311.0925637,0.00027397,7]
[343950736,1733129438316,-189.69082153,0.00027397,7]
[343950738,1733129438325,-500.0,0.00027397,7]
[343950740,1733129438335,-500.0,0.00027397,7]
[343950742,1733129438344,-500.0,0.00027397,7]
[343950744,1733129438353,-506.56063264,0.00027397,7]
[343950746,1733129438362,-500.91013986,0.00027397,7]
[343950748,1733129438372,-504.43554,0.00027397,7]
[343950750,1733129438381,-151.0,0.00027397,7]
[343950752,1733129438390,-151.0,0.00027397,7]
[343950754,1733129438400,-151.0,0.00027397,7]
[343950756,1733129438409,-151.0,0.00027397,7]
[343950758,1733129438418,-500.0,0.00027397,7]
[343950760,1733129438428,-506.66833609,0.00027397,7]
[343950762,1733129438437,-500.0,0.00027397,7]
[343950763,1733129438447,-500.0,0.00027397,7]
[343950764,1733129438456,-531.79150265,0.00027397,7]
[343950765,1733129438466,-502.36200706,0.00027397,7]
[343950766,1733129438474,-505.84641113,0.00027397,7]
[343950767,1733129438483,-500.0,0.00027397,7]
[343950768,1733129438493,-500.0,0.00027397,7]
[343950769,1733129438502,-500.0,0.00027397,7]
[343950770,1733129438512,-504.15365139,0.00027397,7]
[343950771,1733129438521,-503.16710192,0.00027397,7]
[343950772,1733129438531,-500.0,0.00027397,7]
[343950773,1733129438543,-501.22994321,0.00027397,7]
[343950774,1733129438554,-500.0,0.00027397,7]
[343950775,1733129438563,-500.0,0.00027397,7]
[343950776,1733129438572,-500.0,0.00027397,7]
[343950777,1733129438581,-500.0,0.00027397,7]
[343950778,1733129438590,-500.0,0.00027397,7]
[343950779,1733129438600,-500.0,0.00027397,7]
[343950780,1733129438609,-400.64351823,0.00027397,7]
[343950781,1733129438618,-500.0,0.00027397,7]
[343950782,1733129438627,-502.35378765,0.00027397,7]
[343950783,1733129438636,-513.05403765,0.00027397,7]
[343950784,1733129438645,-501.37160495,0.00027397,7]
[343950785,1733129438655,-501.10443386,0.00027397,7]
[343950786,1733129438664,-503.53919324,0.00027397,7]
[343950787,1733129438673,-500.0,0.00027397,7]
[343950788,1733129438683,-500.71675606,0.00027397,7]
[343950789,1733129438693,-502.27441585,0.00027397,7]
[343950790,1733129438702,-500.0,0.00027397,7]
[343950791,1733129438711,-501.34491586,0.00027397,7]
[343950792,1733129438721,-503.6426751,0.00027397,7]
[343950793,1733129438730,-501.88728075,0.00027397,7]
[343950794,1733129438740,-506.06830146,0.00027397,7]
[343950795,1733129438749,-502.96179916,0.00027397,7]
[343950796,1733129438758,-502.29323622,0.00027397,7]
[343950797,1733129438767,-311.15935258,0.00027397,7]
[343950798,1733129438777,-500.0,0.00027397,7]
[343950799,1733129438786,-195.21787616,0.00027397,7]
[343950800,1733129438798,-500.0,0.00027397,7]
[343950801,1733129438807,-500.0,0.00027397,7]
[343950802,1733129438816,-503.09301975,0.00027397,7]
[343950803,1733129438826,-500.0,0.00027397,7]
[343950804,1733129438835,-500.0,0.00027397,7]
[343950805,1733129438844,-509.63148834,0.00027397,7]
[343950806,1733129438854,-567.69313714,0.00027397,7]
[343950807,1733129438863,-502.48415154,0.00027397,7]
[343950808,1733129438873,-482.84416749,0.00027397,7]
[343950809,1733129438883,-502.17859784,0.00027397,7]
[343950810,1733129438892,-500.0,0.00027397,7]
[343950811,1733129438903,-503.71628681,0.00027397,7]
[343950812,1733129438914,-500.0,0.00027397,7]
[343950813,1733129438924,-501.23010225,0.00027397,7]
[343950814,1733129438937,-501.47752466,0.00027397,7]
[343950815,1733129438947,-512.69103575,0.00027397,7]
[343950816,1733129438957,-500.0,0.00027397,7]
[343950817,1733129438968,-500.0,0.00027397,7]
[343950818,1733129438978,-500.0,0.00027397,7]
[343950819,1733129438988,-500.0,0.00027397,7]
[343950820,1733129438997,-518.59195506,0.00027397,7]
[343950821,1733129439008,-502.70622122,0.00027397,7]
[343950822,1733129439019,-500.76686506,0.00027397,7]
[343950823,1733129439028,-505.52863855,0.00027397,7]
[343950824,1733129439038,-500.0,0.00027397,7]
[343950825,1733129439053,-229.08358679,0.00027397,7]
[343950826,1733129439063,-501.10175652,0.00027397,7]
[343950827,1733129439073,-507.42755653,0.00027397,7]
[343950828,1733129439082,-502.97062264,0.00027397,7]
[343950829,1733129439091,-500.0,0.00027397,7]
[343950830,1733129439100,-500.0,0.00027397,7]
[343950831,1733129439110,-500.0,0.00027397,7]
[343950832,1733129439119,-500.0,0.00027397,7]
[343950833,1733129439129,-503.29947343,0.00027397,7]
[343950834,1733129439138,-500.0,0.00027397,7]
[343950835,1733129439148,-503.81475355,0.00027397,7]
[343950836,1733129439157,-506.63943097,0.00027397,7]
[343950837,1733129439167,-500.0,0.00027397,7]
[343950838,1733129439177,-151.0,0.00027397,7]
[343950839,1733129439187,-500.0,0.00027397,7]
[343950840,1733129439196,-287.537913,0.00027397,7]
[343950841,1733129439206,-505.19160582,0.00027397,7]
[343950842,1733129439216,-501.33767705,0.00027397,7]
[343950843,1733129439226,-500.69016317,0.00027397,7]
[343950844,1733129439236,-500.0,0.00027397,7]
[343950845,1733129439247,-500.0,0.00027397,7]
[343950846,1733129439257,-500.0,0.00027397,7]
[343950847,1733129439267,-504.49400117,0.00027397,7]
[343950848,1733129439278,-500.0,0.00027397,7]
[343950849,1733129439287,-504.04072643,0.00027397,7]
[343950850,1733129439302,-500.0,0.00027397,7]
[343950852,1733129439312,-509.65754176,0.00027397,7]
[343950853,1733129439322,-833.33,0.00027397,7]
[343950854,1733129439331,-504.93349494,0.00027397,7]
[343950855,1733129439341,-501.96375497,0.00027397,7]
[343950856,1733129439351,-504.67626875,0.00027397,7]
[343950857,1733129439362,-500.0,0.00027397,7]
[343950858,1733129439371,-500.0,0.00027397,7]
[343950860,1733129439381,-503.32723352,0.00027397,7]
[343950861,1733129439390,-500.0,0.00027397,7]
[343950862,1733129439399,-501.25572659,0.00027397,7]
[343950863,1733129439409,-500.0,0.00027397,7]
[343950864,1733129439418,-500.0,0.00027397,7]
[343950865,1733129439428,-500.0,0.00027397,7]
[343950866,1733129439437,-500.0,0.00027397,7]
[343950867,1733129439446,-502.834476,0.00027397,7]
[343950868,1733129439456,-1001.02908241,0.00027397,5]
[343950869,1733129439465,-539.89703956,0.00027397,7]
[343950870,1733129439474,-501.31970878,0.00027397,7]
[343950871,1733129439483,-201.53096624,0.00027397,7]
[343950873,1733129439492,-505.43471192,0.00027397,7]
[343950875,1733129439501,-584.23324603,0.00027397,7]
[343950876,1733129439511,-500.0,0.00027397,7]
[343950878,1733129439520,-497.9888288,0.00027397,7]
[343950880,1733129439529,-500.0,0.00027397,7]
[343950881,1733129439538,-506.40935368,0.00027397,7]
[343950882,1733129439552,-500.0,0.00027397,7]
[343950883,1733129439562,-500.8244933,0.00027397,7]
[343950884,1733129439571,-229.70728444,0.00027397,7]
[343950885,1733129439581,-503.87880016,0.00027397,7]
[343950886,1733129439589,-501.13018869,0.00027397,7]
[343950887,1733129439598,-500.0,0.00027397,7]
[343950888,1733129439608,-504.08790508,0.00027397,7]
[343950889,1733129439617,-500.0,0.00027397,7]
[343950890,1733129439698,-501.91905682,0.00027397,7]
[343950891,1733129439708,-500.0,0.00027397,7]
[343950892,1733129439717,-500.0,0.00027397,7]
[343950893,1733129439726,-500.0,0.00027397,7]
[343950894,1733129439736,-500.0,0.00027397,7]
[343950895,1733129439745,-508.74397946,0.00027397,7]
[343950896,1733129439755,-500.0,0.00027397,7]
[343950897,1733129439764,-515.08541069,0.00027397,7]
[343950898,1733129439773,-500.0,0.00027397,7]
[343950899,1733129439782,-500.0,0.00027397,2]
[343950900,1733129439790,-500.0,0.00027397,7]
[343950901,1733129439806,-500.0,0.00027397,7]
[343950902,1733129439815,-506.25138473,0.00027397,7]
[343950903,1733129439824,-500.0,0.00027397,7]
[343950904,1733129439834,-503.53586047,0.00027397,7]
[343950905,1733129439843,-506.21457371,0.00027397,7]
[343950906,1733129439853,-500.0,0.00027397,7]
[343950907,1733129439864,-500.0,0.00027397,7]
[343950908,1733129439874,-500.0,0.00027397,7]
[343950909,1733129439884,-500.0,0.00027397,7]
[343950910,1733129439894,-502.80118421,0.00027397,7]
[343950911,1733129439903,-500.0,0.00027397,7]
[343950912,1733129439916,-500.0,0.00027397,7]
[343950913,1733129439927,-500.0,0.00027397,7]
[343950914,1733129439937,-501.94933149,0.00027397,7]
[343950915,1733129439947,-503.1859314,0.00027397,7]
[343950916,1733129439958,-507.69087657,0.00027397,7]
[343950917,1733129439968,-611.89206316,0.00027397,7]
[343950918,1733129439978,-458.61079816,0.00027397,7]
[343950919,1733129439987,-502.06704663,0.00027397,7]
[343950920,1733129439998,-500.0,0.00027397,7]
[343950921,1733129440009,-555.27197195,0.00027397,7]
[343950922,1733129440022,-151.0,0.00027397,7]
[343950923,1733129440031,-151.0,0.00027397,7]
[343950924,1733129440041,-151.0,0.00027397,7]
[343950925,1733129440056,-546.62676562,0.00027397,7]
[343950926,1733129440066,-501.03400988,0.00027397,7]
[343950927,1733129440075,-509.78119396,0.00027397,7]
[343950928,1733129440085,-500.0,0.00027397,7]
[343950929,1733129440095,-500.0,0.00027397,7]
[343950930,1733129440105,-511.92435894,0.00027397,7]
[343950931,1733129440115,-507.35423621,0.00027397,7]
[343950932,1733129440124,-514.29178676,0.00027397,7]
[343950933,1733129440134,-504.52551221,0.00027397,7]
[343950934,1733129440144,-500.0,0.00027397,7]
[343950935,1733129440154,-501.7556985,0.00027397,7]
[343950936,1733129440165,-500.0,0.00027397,7]
[343950937,1733129440175,-513.0806425,0.00027397,7]
[343950938,1733129440184,-500.0,0.00027397,7]
[343950939,1733129440194,-500.0,0.00027397,7]
[343950940,1733129440203,-624.10962033,0.00027397,7]
[343950941,1733129440213,-504.32380333,0.00027397,7]
[343950942,1733129440223,-507.44166039,0.00027397,7]
[343950943,1733129440233,-500.0,0.00027397,7]
[343950944,1733129440242,-506.57903948,0.00027397,7]
[343950945,1733129440252,-502.2011137,0.00027397,7]
[343950946,1733129440261,-500.0,0.00027397,7]
[343950947,1733129440271,-501.18397962,0.00027397,7]
[343950948,1733129440281,-500.0,0.00027397,7]
[343950949,1733129440292,-482.30206029,0.00027397,5]
[343950950,1733129440304,-414.82550118,0.00027397,7]
[343950951,1733129440314,-500.0,0.00027397,7]
[343950952,1733129440323,-500.99252582,0.00027397,7]
[343950953,1733129440334,-503.56149404,0.00027397,7]
[343950954,1733129440344,-500.0,0.00027397,7]
[343950955,1733129440354,-501.26843908,0.00027397,7]
[343950956,1733129440363,-501.90531019,0.00027397,7]
[343950957,1733129440374,-500.0,0.00027397,7]
[343950958,1733129440383,-502.3823761,0.00027397,7]
[343950959,1733129440393,-502.48691141,0.00027397,7]
[343950960,1733129440403,-536.99564545,0.00027397,7]
[343950961,1733129440413,-500.0,0.00027397,7]
[343950962,1733129440423,-500.0,0.00027397,7]
[343950963,1733129440433,-600.60822193,0.00027397,7]
[343950964,1733129440443,-500.0,0.00027397,7]
[343950965,1733129440453,-500.0,0.00027397,7]
[343950966,1733129440463,-500.0,0.00027397,7]
[343950967,1733129440473,-501.68687311,0.00027397,7]
[343950968,1733129440483,-503.72042565,0.00027397,7]
[343950969,1733129440493,-500.73962808,0.00027397,7]
[343950970,1733129440502,-500.0,0.00027397,7]
[343950971,1733129440512,-500.0,0.00027397,7]
[343950972,1733129440522,-547.32192831,0.00027397,7]
[343950973,1733129440532,-506.04755427,0.00027397,7]
[343950974,1733129440541,-500.0,0.00027397,7]
[343950975,1733129440555,-516.56429695,0.00027397,7]